bitfinex/quotes_ETHUSD_20251126
["timestamp","ask_amount","ask_price","bid_price","bid_amount"]
[1764176855067,0.002,2951.9,2951.8,4.9223575]
[1764176855566,1.11,2951.9,2951.8,0.1]
[1764176856168,1.11,2951.9,2951.7,0.1]
[1764176856169,0.405504,2951.8,2951.7,0.1]
[1764176856369,0.893304,2951.8,2951.7,0.1]
[1764176856572,1.316404,2951.8,2951.7,0.1]
[1764176857450,1.8067415,2951.8,2951.7,0.1]
[1764176857779,1.316404,2951.8,2951.7,0.1]
[1764176859484,0.828604,2951.8,2951.7,0.1]
[1764176860760,1.315704,2951.8,2951.7,0.1]
[1764176862792,0.828604,2951.8,2951.7,0.1]
[1764176864308,0.1994,2951.9,2951.1,4.2625565]
[1764176864309,0.1925,2951.9,2951.8,0.1]
[1764176864794,0.6554,2951.9,2951.8,0.1]
[1764176864973,0.4649,2951.9,2951.8,0.1]
[1764176867769,0.002,2951.9,2951.8,1.0285]
[1764176868472,0.002,2951.9,2951.8,0.5762]
[1764176868684,0.002,2951.9,2951.8,3.96396339]
[1764176869367,0.002,2951.9,2951.8,4.41626339]
[1764176870476,0.002,2951.9,2951.8,3.96396339]
[1764176871403,0.002,2951.9,2951.8,4.41626339]
[1764176871975,0.002,2951.9,2951.8,3.96396339]
[1764176873201,0.002,2951.9,2951.8,4.41626339]
[1764176875173,0.4649,2951.9,2951.8,0.1]
[1764176875975,0.002,2951.9,2951.8,3.96396339]
[1764176876903,0.002,2951.9,2951.8,0.5762]
[1764176877103,0.002,2951.9,2951.8,3.96396339]
[1764176877306,0.464,2951.9,2951.8,0.1]
[1764176877495,0.002,2951.9,2951.8,0.1]
[1764176877696,0.002,2951.9,2951.8,0.5762]
[1764176878486,0.002,2951.9,2951.8,3.96396339]
[1764176879383,0.002,2951.9,2951.8,0.5762]
[1764176880079,0.002,2951.9,2951.8,0.1]
[1764176880293,0.002,2951.9,2951.8,3.96396339]
[1764176881093,0.002,2951.9,2951.8,0.5762]
[1764176881507,0.9194,2951.9,2951.8,0.1]
[1764176881686,1.1099,2951.9,2951.8,0.1]
[1764176881889,1.1099,2951.9,2951.6,0.217]
[1764176882205,0.598004,2951.9,2951.8,0.1]
[1764176882585,1.515404,2951.9,2951.8,0.1]
[1764176884611,0.405504,2951.8,2951.7,0.1]
[1764176884821,0.0046,2951.7,2951.6,0.101]
[1764176885223,0.1925,2951.9,2951.6,0.101]
[1764176885380,0.1925,2951.9,2951.8,0.1]
[1764176885381,0.002,2951.9,2951.8,0.1]
[1764176885721,0.462,2951.7,2951.6,0.101]
[1764176886414,1.323004,2951.7,2951.6,0.001]
[1764176886615,1.323004,2951.7,2951.6,0.101]
[1764176886825,2.12804753,2951.7,2951.6,0.101]
[1764176888036,0.002,2951.9,2951.8,0.1]
[1764176888414,0.4675,2951.9,2951.8,0.1]
[1764176888619,0.9195,2951.9,2951.8,0.1]
[1764176891042,1.325004,2951.9,2951.8,0.1]
[1764176891213,0.405504,2951.8,2951.6,0.217]
[1764176891530,7.58293534,2951.7,2951.6,0.001]
[1764176891834,8.62474068,2951.7,2951.6,0.001]
[1764176892036,12.66514068,2951.7,2951.6,0.001]
[1764176892330,1.13109811,2951.5,2951.4,0.001]
[1764176892532,3.02986689,2951.5,2951.4,0.001]
[1764176892734,3.49536689,2951.5,2951.4,0.001]
[1764176893302,8.98542945,2951.5,2951.4,0.001]
[1764176893534,12.37353719,2951.5,2951.4,0.001]
[1764176894741,5.64810585,2951.5,2951.4,0.001]
[1764176896710,5.78385299,2951.5,2951.4,0.001]
[1764176902244,12.12385299,2951.5,2951.4,0.001]
[1764176902421,13.67503835,2951.5,2951.4,0.001]
[1764176904446,17.25003835,2951.5,2951.4,0.001]
[1764176906356,10.91003835,2951.5,2951.4,0.001]
[1764176906560,4.439904,2951.1,2950.6,0.001]
[1764176906848,4.90859811,2950.9,2950.6,0.001]
[1764176907021,5.22358209,2950.9,2950.6,0.001]
[1764176907221,5.67388209,2950.9,2950.6,0.001]
[1764176907636,5.80968499,2950.9,2950.6,0.001]
[1764176909653,9.19848162,2950.9,2950.6,0.001]
[1764176909856,10.64127376,2950.9,2950.6,0.001]
[1764176911560,17.19727376,2950.9,2950.6,0.001]
[1764176912422,17.19674829,2950.9,2950.6,0.001]
[1764176913159,17.19674829,2950.9,2949.5,0.4656]
[1764176913160,0.405504,2950.5,2949.5,0.001]
[1764176913333,0.4652,2950.6,2949.5,0.001]
[1764176913334,4.70609811,2950.1,2949.5,0.001]
[1764176913656,4.70609811,2949.9,2949.5,0.001]
[1764176913836,14.19168943,2949.9,2949.5,0.001]
[1764176914150,14.64198943,2949.9,2949.5,0.001]
[1764176914654,12.63473051,2949.9,2949.5,0.001]
[1764176914952,3.38788108,2949.9,2949.5,0.001]
[1764176915129,10.12585497,2949.9,2949.5,0.001]
[1764176915537,13.92130439,2949.9,2949.5,0.001]
[1764176915726,14.13730439,2949.9,2949.5,0.001]
[1764176916551,7.3993305,2949.9,2949.5,0.001]
[1764176917255,7.71307421,2949.9,2949.5,0.001]
[1764176917553,1.13109811,2949.6,2949.5,0.001]
[1764176917735,14.24395113,2949.6,2949.5,0.001]
[1764176917922,14.69425113,2949.6,2949.5,0.001]
[1764176918557,14.69425113,2949.6,2949.2,0.001]
[1764176918741,0.0256,2949.3,2949.2,0.001]
[1764176918927,6.06676812,2949.3,2949.2,0.001]
[1764176919123,6.47367868,2949.3,2949.2,0.001]
[1764176919341,6.06676812,2949.3,2949.2,0.001]
[1764176919732,9.45740318,2949.3,2949.2,0.001]
[1764176920552,5.88240318,2949.3,2949.2,0.001]
[1764176920728,6.09795406,2949.3,2949.2,0.001]
[1764176921656,9.67295406,2949.3,2949.2,0.001]
[1764176922054,9.80884324,2949.3,2949.2,0.001]
[1764176922556,4.70609811,2949.2,2949.0,0.001]
[1764176922768,12.09715965,2949.1,2949.0,0.001]
[1764176922974,12.54745965,2949.1,2949.0,0.001]
[1764176923828,15.93832465,2949.1,2949.0,0.001]
[1764176924142,16.07421937,2949.1,2949.0,0.001]
[1764176924341,25.98921937,2949.1,2949.0,0.001]
[1764176925141,17.47297562,2949.1,2949.0,0.001]
[1764176927740,12.24141147,2949.1,2949.0,0.001]
[1764176928558,13.09631547,2949.1,2949.0,0.001]
[1764176928765,13.58471547,2949.1,2949.0,0.001]
[1764176928964,12.64691547,2949.1,2949.0,0.001]
[1764176930251,12.43091547,2949.1,2949.0,0.001]
[1764176930572,12.64691547,2949.1,2949.0,0.001]
[1764176930767,13.09631547,2949.1,2949.0,0.001]
[1764176931340,12.64691547,2949.1,2949.0,0.001]
[1764176932084,12.64691547,2949.1,2949.0,0.4729]
[1764176932085,12.43091547,2949.1,2949.0,0.4729]
[1764176932253,13.58471547,2949.1,2949.0,0.001]
[1764176932868,13.09631547,2949.1,2949.0,0.001]
[1764176933041,12.64691547,2949.1,2949.0,0.001]
[1764176933850,11.21385783,2949.1,2949.0,0.4729]
[1764176934254,11.52735801,2949.1,2949.0,0.4729]
[1764176934655,11.97675801,2949.1,2949.0,0.001]
[1764176934866,12.46515801,2949.1,2949.0,0.001]
[1764176935444,11.97675801,2949.1,2949.0,0.001]
[1764176935645,26.74926942,2949.1,2949.0,0.001]
[1764176937970,17.50312567,2949.1,2949.0,0.001]
[1764176938273,17.99152567,2949.1,2949.0,0.001]
[1764176938574,24.73247426,2949.1,2949.0,0.001]
[1764176940677,24.73274727,2949.1,2949.0,0.001]
[1764176941046,3.575,2948.9,2948.7,0.001]
[1764176941377,3.575,2948.9,2948.5,0.001]
[1764176941378,4.70609811,2948.6,2948.5,0.001]
[1764176941543,11.98601989,2948.6,2948.5,0.001]
[1764176941747,13.19933465,2948.6,2948.5,0.001]
[1764176942573,12.84644599,2948.6,2948.5,0.001]
[1764176942773,15.32493559,2948.6,2948.5,0.001]
[1764176942975,15.77903559,2948.6,2948.5,0.001]
[1764176943279,19.17170517,2948.6,2948.5,0.001]
[1764176944773,19.03579383,2948.6,2948.5,0.001]
[1764176947646,19.94297426,2948.6,2948.5,0.001]
[1764176948050,26.28297426,2948.6,2948.5,0.001]
[1764176949279,25.37579383,2948.6,2948.5,0.001]
[1764176953483,24.92169383,2948.6,2948.5,0.001]
[1764176953652,24.70569383,2948.6,2948.5,0.001]
[1764176953853,24.92169383,2948.6,2948.5,0.001]
[1764176954054,25.37579383,2948.6,2948.5,0.001]
[1764176955365,24.92169383,2948.6,2948.5,0.001]
[1764176955967,17.70540203,2948.6,2948.5,0.001]
[1764176956178,17.70540203,2948.6,2948.5,0.9323]
[1764176956179,10.77151432,2948.6,2948.5,0.9323]
[1764176956357,10.26176998,2948.6,2948.5,0.9323]
[1764176956553,10.77136409,2948.6,2948.5,0.9323]
[1764176956953,11.17686809,2948.6,2948.5,0.9323]
[1764176960988,11.17686809,2948.6,2948.5,0.4778]
[1764176961377,11.17686809,2948.6,2948.5,0.9323]
[1764176961881,7.47109811,2948.6,2948.5,0.9323]
[1764176962080,1.13109811,2948.6,2948.5,1.0323]
[1764176962866,4.52253811,2948.6,2948.5,0.9323]
[1764176963867,1.13109811,2948.6,2948.5,1.0323]
[1764176964104,4.52253811,2948.6,2948.5,0.9323]
[1764176964409,4.52253811,2948.6,2948.5,1.0323]
[1764176964410,1.13109811,2948.6,2948.5,1.0323]
[1764176964912,1.13109811,2948.6,2948.5,0.9323]
[1764176965206,1.13109811,2948.6,2948.5,1.0323]
[1764176965389,0.72559411,2948.6,2948.5,1.0323]
[1764176965690,4.11703411,2948.6,2948.5,0.9323]
[1764176965894,5.27357189,2948.6,2948.5,0.4778]
[1764176966309,5.58897478,2948.6,2948.5,0.4778]
[1764176967168,5.58897478,2948.6,2948.5,0.9323]
[1764176967368,1.13109811,2948.6,2948.5,1.0323]
[1764176969270,0.002,2948.7,2948.5,0.9323]
[1764176969472,0.002,2948.7,2948.6,1.0313]
[1764176969673,0.407504,2948.7,2948.6,0.4768]
[1764176969903,4.5244231,2948.7,2948.6,0.9313]
[1764176970468,1.13309811,2948.7,2948.6,0.9313]
[1764176970704,4.5244231,2948.7,2948.6,0.9313]
[1764176971499,1.13309811,2948.7,2948.6,1.0313]
[1764176972219,0.002,2948.7,2948.6,1.0313]
[1764176972369,0.002,2948.7,2948.6,4.42274]
[1764176973991,0.002,2949.0,2948.6,11.20562]
[1764176974185,0.002,2949.0,2948.9,10.70828678]
[1764176974507,0.002,2949.2,2948.9,14.45388176]
[1764176974682,0.002,2949.3,2949.1,0.7622]
[1764176974881,0.002,2949.8,2949.4,0.4768]
[1764176975098,0.002,2950.2,2949.8,0.1]
[1764176975401,0.002,2950.2,2949.8,0.6928]
[1764176975605,0.002,2950.2,2950.1,0.6742]
[1764176976196,0.002,2950.2,2950.1,1.1287]
[1764176977180,0.002,2950.2,2950.1,4.5184156]
[1764176977474,0.002,2950.2,2950.1,1.1287]
[1764176978587,0.002,2950.2,2950.1,1.0287]
[1764176978900,0.002,2950.2,2950.1,1.1287]
[1764176982578,0.405504,2950.1,2949.9,0.001]
[1764176983512,0.002,2950.2,2949.9,0.001]
[1764176984207,0.002,2950.2,2949.9,0.101]
[1764176984504,0.002,2950.2,2950.1,0.6777]
[1764176984704,0.002,2950.2,2950.1,0.7777]
[1764176984913,0.002,2950.2,2950.1,0.6777]
[1764176985221,0.002,2950.2,2950.1,1.2492]
[1764176985897,0.002,2950.2,2950.1,0.4935]
[1764176987586,0.002,2950.2,2949.9,0.001]
[1764176988134,0.002,2950.2,2950.0,0.1]
[1764176988413,0.002,2950.2,2950.1,0.5935]
[1764176988591,0.002,2950.2,2949.9,0.001]
[1764176988795,0.002,2950.2,2950.0,0.1]
[1764176989001,3.7952196,2950.1,2949.9,0.101]
[1764176989510,3.7952196,2950.1,2949.9,0.001]
[1764176989717,3.7952196,2950.1,2949.9,0.101]
[1764176989885,0.405504,2950.1,2949.9,0.101]
[1764176990398,0.865804,2950.0,2949.9,0.001]
[1764176990598,2.92781976,2950.0,2949.9,0.001]
[1764176991412,6.31765026,2950.0,2949.9,0.001]
[1764176991784,6.77085026,2950.0,2949.9,0.001]
[1764176994808,0.405504,2950.0,2949.9,1.066]
[1764176995027,0.72759411,2950.2,2949.9,0.966]
[1764176995198,0.002,2950.2,2950.1,0.1]
[1764176995394,0.002,2950.2,2950.1,0.7777]
[1764176995593,0.002,2950.2,2950.1,1.2492]
[1764176996005,1.13309811,2950.2,2950.1,0.5935]
[1764176996306,0.405504,2950.1,2949.9,0.101]
[1764176996600,0.405504,2950.1,2950.0,0.1]
[1764176997125,0.405504,2950.1,2949.9,0.001]
[1764176997126,4.52081371,2950.1,2949.9,0.101]
[1764176997824,1.13109811,2950.0,2949.9,0.101]
[1764176998189,1.13109811,2950.0,2949.9,0.5945]
[1764176998817,1.13109811,2950.0,2949.9,0.001]
[1764176998818,2.38264083,2950.0,2949.9,0.001]
[1764176999021,6.22567133,2950.0,2949.9,0.001]
[1764176999196,5.77247133,2950.0,2949.9,0.001]
[1764177000317,3.3897156,2950.1,2950.0,0.1]
[1764177000318,0.405504,2950.1,2950.0,0.1]
[1764177000529,0.405504,2950.1,2950.0,0.4935]
[1764177001023,0.405504,2950.1,2950.0,0.5935]
[1764177001328,0.405504,2950.1,2950.0,0.4935]
[1764177001622,0.405504,2950.1,2950.0,0.5935]
[1764177002039,0.405504,2950.1,2950.0,1.065]
[1764177003705,4.52081371,2950.1,2950.0,0.5935]
[1764177003910,1.13109811,2950.1,2950.0,0.5935]
[1764177004125,1.13109811,2950.1,2950.0,0.1]
[1764177004424,4.52081371,2950.1,2950.0,0.1]
[1764177004629,0.72559411,2950.0,2949.9,0.001]
[1764177005005,0.72559411,2950.0,2949.9,0.4945]
[1764177005400,0.72559411,2950.0,2949.9,0.5945]
[1764177006629,4.97320998,2950.0,2949.9,0.589]
[1764177008513,4.52092861,2950.0,2949.9,0.589]
[1764177008935,4.52092861,2950.0,2949.9,0.489]
[1764177009101,4.93732861,2950.0,2949.9,0.001]
[1764177009840,4.52092861,2950.0,2949.9,0.001]
[1764177011133,4.52092861,2950.0,2949.9,0.101]
[1764177011429,0.72559411,2950.1,2950.0,0.1]
[1764177011734,1.13109811,2950.1,2950.0,0.1]
[1764177011929,0.405504,2950.0,2949.9,0.001]
[1764177012336,0.405504,2950.0,2949.9,0.101]
[1764177012812,4.52092861,2950.0,2949.9,0.001]
[1764177013126,4.83675771,2950.0,2949.9,0.001]
[1764177013549,5.05275771,2950.0,2949.9,0.001]
[1764177013703,9.97659164,2950.0,2949.9,0.001]
[1764177013904,10.70408733,2950.0,2949.9,0.001]
[1764177014304,9.97659164,2950.0,2949.9,0.001]
[1764177016031,9.76059164,2950.0,2949.9,0.001]
[1764177016341,9.97659164,2950.0,2949.9,0.001]
[1764177018237,10.44859164,2950.0,2949.9,0.001]
[1764177019034,6.87559164,2950.0,2949.9,0.001]
[1764177019546,10.44859164,2950.0,2949.9,0.001]
[1764177019918,5.05475771,2950.0,2949.9,0.001]
[1764177020117,4.43325371,2950.0,2949.9,0.001]
[1764177020647,0.002,2950.0,2949.9,0.101]
[1764177022724,0.002,2950.0,2949.9,3.49094542]
[1764177023023,0.002,2950.0,2949.9,0.101]
[1764177023542,0.002,2950.0,2949.9,3.49094542]
[1764177023846,0.002,2950.0,2949.9,0.101]
[1764177024021,0.002,2950.0,2949.9,3.49094542]
[1764177025320,0.002,2950.0,2949.9,0.101]
[1764177026040,0.002,2950.0,2949.9,3.49094542]
[1764177027055,0.002,2950.0,2949.9,0.101]
[1764177028053,0.002,2950.0,2949.9,0.001]
[1764177028244,0.002,2950.0,2949.9,0.101]
[1764177029249,0.002,2950.0,2949.9,3.49094542]
[1764177030228,0.002,2950.0,2949.9,0.001]
[1764177030429,0.002,2950.0,2949.9,3.49094542]
[1764177030628,0.002,2950.0,2949.9,0.101]
[1764177032558,0.002,2950.0,2949.9,3.39094542]
[1764177032755,0.002,2950.0,2949.9,3.49094542]
[1764177032958,0.002,2950.0,2949.9,0.101]
[1764177033332,0.002,2950.0,2949.9,3.49094542]
[1764177034053,0.002,2950.0,2949.9,3.39094542]
[1764177034258,0.002,2950.0,2949.9,3.49094542]
[1764177035968,0.002,2950.0,2949.9,3.39094542]
[1764177036265,0.002,2950.0,2949.9,3.49094542]
[1764177038039,0.002,2950.0,2949.9,0.001]
[1764177038235,0.002,2950.0,2949.9,0.101]
[1764177039260,0.002,2950.0,2949.9,0.001]
[1764177039666,0.78862198,2950.0,2949.9,0.001]
[1764177040037,1.02060827,2950.0,2949.9,0.001]
[1764177040439,5.13603288,2950.0,2949.9,0.001]
[1764177040698,4.11742461,2950.0,2949.9,0.001]
[1764177040846,4.52292861,2950.0,2949.9,0.001]
[1764177044093,0.002,2950.0,2949.9,7.04812164]
[1764177044250,0.002,2950.0,2949.9,33.30396291]
[1764177044457,0.002,2950.0,2949.9,28.00458206]
[1764177045163,0.002,2950.0,2949.9,35.46129781]
[1764177045472,0.002,2950.0,2949.9,40.68029981]
[1764177045769,0.002,2950.0,2949.9,27.14472717]
[1764177045972,0.002,2950.0,2949.9,19.93856517]
[1764177046467,0.002,2950.0,2949.9,10.33886706]
[1764177046668,0.002,2950.0,2949.9,40.58322817]
[1764177046870,0.002,2950.0,2949.9,13.45690517]
[1764177047049,0.002,2950.0,2949.9,3.39174542]
[1764177047255,0.002,2950.0,2949.9,3.60774542]
[1764177052973,0.002,2950.0,2949.9,3.39174542]
[1764177053181,0.002,2950.0,2949.9,3.60774542]
[1764177056650,0.002,2950.0,2949.9,3.70694542]
[1764177058773,0.002,2950.0,2949.9,3.60694542]
[1764177058978,0.002,2950.0,2949.9,3.70694542]
[1764177061085,0.002,2950.0,2949.9,3.60694542]
[1764177061386,0.002,2950.0,2949.9,3.70694542]
[1764177061563,0.002,2950.0,2949.9,0.217]
[1764177061756,0.002,2950.0,2949.9,0.001]
[1764177062168,0.002,2950.0,2949.9,3.39094542]
[1764177062580,0.002,2950.0,2949.9,3.49094542]
[1764177063595,0.002,2950.0,2949.9,3.39094542]
[1764177063992,0.002,2950.0,2949.9,3.49094542]
[1764177067001,0.002,2950.0,2949.9,3.39094542]
[1764177067162,0.002,2950.0,2949.9,10.22045976]
[1764177067899,0.002,2950.0,2949.9,3.49094542]
[1764177068695,0.002,2950.0,2949.9,0.101]
[1764177068881,0.002,2950.0,2949.9,0.001]
[1764177069191,0.002,2950.0,2949.9,0.101]
[1764177069670,0.002,2950.0,2949.9,0.001]
[1764177069876,0.002,2950.0,2949.9,0.101]
[1764177071165,0.002,2950.0,2949.9,3.49094542]
[1764177077091,0.002,2950.0,2949.9,3.70694542]
[1764177079815,0.002,2950.0,2949.9,3.39094542]
[1764177080015,0.002,2950.0,2949.9,0.001]
[1764177080182,8.17914854,2950.0,2949.9,0.001]
[1764177080385,9.58516698,2950.0,2949.9,0.001]
[1764177080585,1.9977912,2950.0,2949.9,0.001]
[1764177080812,4.97529944,2950.0,2949.9,0.001]
[1764177081000,4.6587412,2950.0,2949.9,0.001]
[1764177082687,11.70454825,2950.0,2949.9,0.001]
[1764177083719,4.97503391,2950.0,2949.9,0.001]
[1764177084020,5.19103391,2950.0,2949.9,0.001]
[1764177084221,6.0493096,2950.0,2949.9,0.001]
[1764177084793,12.77882394,2950.0,2949.9,0.001]
[1764177085520,6.0493096,2950.0,2949.9,0.001]
[1764177086302,12.3893096,2950.0,2949.9,0.001]
[1764177088100,12.1733096,2950.0,2949.9,0.001]
[1764177088426,12.38839805,2950.0,2949.9,0.001]
[1764177088601,12.17239805,2950.0,2949.9,0.001]
[1764177089121,11.85701689,2950.0,2949.9,0.001]
[1764177090220,6.47781259,2950.0,2949.9,0.001]
[1764177090422,0.002,2950.0,2949.9,0.001]
[1764177090594,0.002,2950.0,2949.9,0.101]
[1764177091696,0.002,2950.0,2949.9,0.001]
[1764177091896,0.002,2950.0,2949.9,0.101]
[1764177092124,0.002,2950.0,2949.9,0.001]
[1764177092530,0.002,2950.0,2949.9,0.101]
[1764177093519,0.002,2950.0,2949.9,0.001]
[1764177094421,0.002,2950.0,2949.9,0.101]
[1764177094597,0.002,2950.0,2949.9,0.001]
[1764177097130,0.002,2950.0,2949.9,0.101]
[1764177097337,0.002,2950.0,2949.9,0.001]
[1764177098236,0.002,2950.0,2949.9,0.101]
[1764177098616,0.002,2950.0,2949.9,0.001]
[1764177098803,0.002,2950.0,2949.9,0.101]
[1764177099228,0.002,2950.0,2949.9,0.001]
[1764177100102,0.002,2950.0,2949.9,0.101]
[1764177100600,0.002,2950.0,2949.9,0.001]
[1764177100803,0.002,2950.0,2949.9,0.101]
[1764177102616,0.002,2950.0,2949.9,0.001]
[1764177102815,0.002,2950.0,2949.9,0.101]
[1764177107330,0.002,2950.0,2949.9,0.001]
[1764177107512,0.002,2950.0,2949.9,0.101]
[1764177108814,0.002,2950.0,2949.9,0.001]
[1764177109141,0.002,2950.0,2949.9,0.101]
[1764177109340,0.002,2950.0,2949.9,0.001]
[1764177109545,0.002,2950.0,2949.9,0.101]
[1764177110537,0.002,2950.0,2949.9,0.001]
[1764177110743,0.002,2950.0,2949.9,0.101]
[1764177111542,0.002,2950.0,2949.9,0.001]
[1764177111742,0.002,2950.0,2949.9,0.101]
[1764177114352,0.002,2950.0,2949.9,0.001]
[1764177114562,0.002,2950.0,2949.9,0.101]
[1764177118754,0.002,2950.0,2949.9,3.39094542]
[1764177119163,0.002,2950.0,2949.9,3.49094542]
[1764177120430,0.002,2950.2,2950.0,17.228892]
[1764177120628,0.002,2950.5,2950.4,32.29180345]
[1764177120860,0.002,2951.9,2950.7,0.1]
[1764177121158,0.002,2951.9,2950.7,5.82559411]
[1764177121347,0.002,2951.9,2950.7,12.77110845]
[1764177121549,0.002,2951.9,2950.7,7.77110845]
[1764177121733,3.38986325,2951.8,2950.7,7.55510845]
[1764177122058,0.407504,2951.8,2950.7,7.04551434]
[1764177122257,0.002,2951.8,2950.7,10.43454067]
[1764177122558,0.002,2951.8,2950.7,10.42821515]
[1764177126046,0.002,2951.8,2950.7,31.03155515]
[1764177126944,0.002,2951.8,2950.7,32.89636415]
[1764177127145,0.002,2951.8,2950.7,56.2924444]
[1764177127354,0.002,2951.8,2951.4,6.72318882]
[1764177127662,0.002,2951.8,2951.4,0.315]
[1764177127867,0.002,2951.8,2951.4,7.03818882]
[1764177128164,0.002,2951.8,2951.4,6.93818882]
[1764177128375,0.002,2951.8,2951.4,7.03818882]
[1764177128540,0.002,2951.8,2951.4,3.70322253]
[1764177131868,0.002,2951.8,2951.4,12.96001653]
[1764177132048,0.002,2951.8,2951.4,8.22810953]
[1764177132254,0.002,2951.8,2951.4,8.02370853]
[1764177132868,0.002,2951.8,2951.4,9.73315253]
[1764177133063,0.002,2951.8,2951.4,8.09770853]
[1764177133878,0.002,2951.8,2951.4,9.88912753]
[1764177134961,0.002,2951.8,2951.4,10.32017653]
[1764177136089,0.002,2951.8,2951.4,16.37416564]
[1764177136241,0.002,2951.8,2951.5,1.13109811]
[1764177136442,0.002,2951.8,2951.7,39.46483891]
[1764177136643,0.002,2951.8,2951.7,21.39967491]
[1764177136961,0.002,2951.8,2951.7,25.36257491]
[1764177137164,0.002,2951.8,2951.7,25.86176908]
[1764177138075,0.002,2951.8,2951.7,43.35191125]
[1764177138246,0.002,2951.8,2951.7,44.02229756]
[1764177138448,0.002,2951.8,2951.7,36.79350956]
[1764177138946,0.002,2951.8,2951.7,44.42780156]
[1764177139876,0.002,2951.8,2951.7,39.69085456]
[1764177140042,0.002,2951.8,2951.7,34.57997939]
[1764177140248,0.002,2951.8,2951.7,7.87728228]
[1764177140548,0.002,2951.8,2951.7,8.19148228]
[1764177140764,0.002,2951.8,2951.7,6.92118528]
[1764177140980,0.002,2951.8,2951.7,8.55662928]
[1764177141150,0.002,2951.8,2951.7,6.94127628]
[1764177142049,0.002,2951.8,2951.7,20.73013228]
[1764177142553,0.002,2951.8,2951.7,21.1796862]
[1764177142878,0.002,2951.8,2951.7,21.3946862]
[1764177143047,0.002,2951.8,2951.7,5.0930262]
[1764177143372,0.002,2951.8,2951.7,17.1447022]
[1764177143553,0.002,2951.8,2951.7,13.2561782]
[1764177143874,0.002,2951.8,2951.7,10.4202002]
[1764177144171,0.002,2951.8,2951.7,13.5941222]
[1764177144481,0.002,2951.8,2951.7,0.82559411]
[1764177144684,0.002,2951.8,2951.7,1.04059411]
[1764177144979,0.002,2951.8,2951.7,4.42847228]
[1764177145143,0.002,2951.8,2951.7,1.04059411]
[1764177145678,0.002,2951.8,2951.7,4.42847228]
[1764177145877,0.002,2951.8,2951.7,1.04059411]
[1764177146181,0.002,2951.8,2951.7,0.315]
[1764177147048,0.002,2951.8,2951.0,3.38862099]
[1764177147247,0.002,2951.8,2951.3,0.72559411]
[1764177147780,0.002,2951.8,2951.7,0.0008]
[1764177147958,0.002,2951.8,2951.7,0.2158]
[1764177148360,0.002,2951.8,2951.7,3.60367817]
[1764177149475,0.002,2951.8,2951.7,17.28705917]
[1764177149848,0.002,2951.8,2951.7,16.85868517]
[1764177150291,0.002,2951.8,2951.7,17.81447345]
[1764177150493,0.002,2951.8,2951.7,19.83253045]
[1764177150779,0.002,2951.8,2951.7,26.55042377]
[1764177151560,0.002,2951.8,2951.7,28.25082777]
[1764177151957,0.002,2951.8,2951.7,27.41362777]
[1764177152283,0.002,2951.8,2951.7,24.31568077]
[1764177152472,0.002,2951.8,2951.7,11.54635977]
[1764177152669,0.002,2951.8,2951.7,26.27262977]
[1764177153783,0.002,2951.8,2951.7,11.91491445]
[1764177154586,0.002,2951.8,2951.7,15.23642445]
[1764177154960,0.002,2951.8,2951.7,14.76721645]
[1764177155276,0.002,2951.8,2951.7,14.50286545]
[1764177155789,0.002,2951.8,2951.7,17.12058545]
[1764177155984,0.002,2951.8,2951.7,14.41627145]
[1764177156585,0.002,2951.8,2951.7,17.18644045]
[1764177156882,0.002,2951.8,2951.7,12.05616045]
[1764177157659,0.002,2951.8,2951.7,17.44406045]
[1764177158768,0.002,2951.8,2951.7,21.38085245]
[1764177159190,0.002,2951.8,2951.7,20.91634345]
[1764177159691,0.002,2951.8,2951.7,34.82846645]
[1764177162685,0.002,2951.8,2951.7,4.82846645]
[1764177162862,0.002,2951.8,2951.7,34.82846645]
[1764177163591,0.002,2951.8,2951.7,35.658187]
[1764177163776,0.002,2951.8,2951.7,36.063691]
[1764177163976,0.002,2951.8,2951.7,35.67179887]
[1764177165368,0.002,2951.9,2951.8,0.77559411]
[1764177165573,0.002,2951.9,2951.8,31.37478828]
[1764177165891,0.002,2952.1,2952.0,31.23109811]
[1764177166075,0.002,2952.1,2952.0,31.73029228]
[1764177166271,0.002,2952.1,2952.0,32.1681207]
[1764177166474,0.002,2952.1,2952.0,31.73029228]
[1764177166867,0.002,2952.1,2952.0,35.11782615]
[1764177167062,0.002,2952.1,2952.0,34.61863198]
[1764177167887,0.002,2952.1,2952.0,35.11782615]
[1764177168390,0.002,2952.1,2952.0,34.61863198]
[1764177168588,0.002,2952.1,2952.0,35.11782615]
[1764177168898,0.002,2952.1,2952.0,33.43439898]
[1764177169068,0.002,2952.1,2952.0,30.84749298]
[1764177169265,0.002,2952.1,2952.0,28.50862598]
[1764177169665,0.002,2952.1,2952.0,29.00782015]
[1764177169892,0.002,2952.1,2952.0,35.11782615]
[1764177170291,0.002,2952.1,2952.0,34.61863198]
[1764177174400,0.002,2952.1,2952.0,34.83363198]
[1764177175099,0.002,2952.1,2952.0,35.33282615]
[1764177175677,0.002,2952.1,2952.0,21.85928798]